bitfinex/quotes_SOLUSD_20251216
["timestamp","ask_amount","ask_price","bid_price","bid_amount"]
[1765851329226,7.88982476,126.75,126.71,8.58177098]
[1765851329525,7.88982476,126.75,126.71,13.07106171]
[1765851329709,7.88982476,126.75,126.72,0.69]
[1765851329909,8.57982476,126.75,126.72,0.69]
[1765851331304,7.88982476,126.75,126.72,0.69]
[1765851331837,8.58916675,126.76,126.72,8.58114631]
[1765851333223,7.88850312,126.77,126.73,0.71]
[1765851333545,7.88850312,126.77,126.73,5.19929073]
[1765851333711,5.17929073,126.76,126.72,61.9]
[1765851333910,4.48929073,126.75,126.72,61.9]
[1765851334110,5.17929073,126.75,126.71,9.37]
[1765851335127,17.53638193,126.76,126.72,0.71]
[1765851335327,7.88954635,126.75,126.72,0.71]
[1765851335641,8.57954635,126.75,126.72,0.71]
[1765851340240,7.88954635,126.75,126.71,78.45191141]
[1765851340425,7.89025714,126.74,126.72,0.71]
[1765851342543,8.57954635,126.75,126.72,0.71]
[1765851342964,7.88954635,126.75,126.72,0.71]
[1765851343148,0.69,126.74,126.72,0.71]
[1765851343335,8.57954635,126.75,126.72,0.71]
[1765851343834,8.57954635,126.75,126.72,8.6013823]
[1765851344023,8.57954635,126.75,126.72,0.71]
[1765851344848,20.93631802,126.76,126.72,8.60141391]
[1765851345048,7.88922682,126.76,126.72,13.09070464]
[1765851345352,7.88922682,126.76,126.73,0.71]
[1765851346056,0.69,126.75,126.72,69.79141391]
[1765851346357,0.69,126.75,126.72,62.61]
[1765851346948,0.69,126.75,126.72,61.9]
[1765851347152,5.17929073,126.75,126.72,61.9]
[1765851347522,0.69,126.74,126.72,61.9]
[1765851348653,8.58038636,126.74,126.72,61.9]
[1765851351654,7.89038636,126.74,126.72,61.9]
[1765851351826,8.58038636,126.74,126.71,8.66]
[1765851352025,8.58038636,126.74,126.71,9.37]
[1765851352247,13.06967709,126.74,126.71,9.37]
[1765851353454,8.58038636,126.74,126.71,9.37]
[1765851357834,7.88984532,126.75,126.72,0.71]
[1765851358030,0.69,126.74,126.71,17.26199788]
[1765851358343,0.69,126.74,126.71,9.37]
[1765851358657,5.17929073,126.74,126.71,8.66]
[1765851358847,0.69,126.74,126.71,9.37]
[1765851359351,21.62693652,126.75,126.72,0.71]
[1765851359934,20.93693652,126.75,126.72,0.71]
[1765851360134,21.62693652,126.75,126.72,0.71]
[1765851360334,7.88984532,126.75,126.72,8.60117803]
[1765851360553,8.57916141,126.76,126.72,8.60117803]
[1765851360760,8.57916141,126.76,126.73,0.71]
[1765851361353,0.69,126.75,126.72,0.71]
[1765851362051,0.69,126.75,126.72,8.60128795]
[1765851362742,13.84929074,126.78,126.73,0.66]
[1765851362941,5.18929074,126.78,126.73,62.56]
[1765851363161,5.18929074,126.78,126.73,67.04929073]
[1765851363162,4.48929074,126.78,126.73,67.04929073]
[1765851363461,0.7,126.77,126.74,0.66]
[1765851363665,7.88787922,126.78,126.74,0.66]
[1765851363869,7.88787922,126.78,126.74,9.32]
[1765851364244,7.88787922,126.78,126.75,0.66]
[1765851364457,8.58787922,126.78,126.75,0.66]
[1765851365965,1e-08,126.78,126.77,4.48929073]
[1765851366171,1e-08,126.78,126.77,13.14929073]
[1765851366468,1e-08,126.78,126.77,13.80929073]
[1765851367652,1e-08,126.78,126.77,21.69759237]
[1765851368573,1e-08,126.78,126.77,53.93808725]
[1765851368771,0.1,126.8,126.79,21.85703612]
[1765851368951,0.2,126.83,126.8,4.48929073]
[1765851369154,0.2,126.83,126.81,8.80994492]
[1765851369352,0.2,126.83,126.82,4.48929073]
[1765851369573,0.2,126.83,126.82,5.14929073]
[1765851369877,0.2,126.83,126.82,21.84442726]
[1765851370247,0.2,126.83,126.82,13.03448234]
[1765851370453,0.2,126.83,126.82,21.69448234]
[1765851372269,0.2,126.83,126.82,30.50442726]
[1765851373152,0.1,126.88,126.82,50.21740628]
[1765851373352,0.1,126.88,126.86,4.48929073]
[1765851373567,0.1,126.88,126.87,8.66]
[1765851377358,0.1,126.88,126.87,20.06934182]
[1765851379759,0.1,126.88,126.87,9.32]
[1765851379957,0.1,126.88,126.87,20.06934182]
[1765851381662,0.1,126.88,126.87,78.44208402]
[1765851381867,0.1,126.88,126.87,81.96934182]
[1765851384262,0.04612372,126.88,126.87,81.96934182]
[1765851384463,0.04612372,126.88,126.87,72.64934182]
[1765851384662,0.04612372,126.88,126.87,81.28934182]
[1765851386380,0.04612372,126.88,126.84,2.8672578]
[1765851386381,0.74612372,126.88,126.83,82.27095252]
[1765851386683,0.74612372,126.88,126.84,20.05100966]
[1765851387479,11.49541915,126.88,126.82,2.8672578]
[1765851387786,15.914349,126.85,126.81,8.64]
[1765851388177,0.7,126.84,126.81,20.05265717]
[1765851388375,0.7,126.84,126.82,2.8672578]
[1765851388567,0.7,126.84,126.82,7.88517413]
[1765851389174,0.7,126.84,126.81,20.05519103]
[1765851389371,0.7,126.84,126.79,7.88669117]
[1765851389582,8.58307067,126.86,126.81,7.88581342]
[1765851389790,8.58307067,126.86,126.82,8.64]
[1765851390093,0.7,126.85,126.82,8.64]
[1765851390586,0.7,126.85,126.82,16.52509662]
[1765851390785,0.7,126.85,126.82,19.39475263]
[1765851391089,15.91674721,126.84,126.79,8.64]
[1765851391273,15.91674721,126.84,126.79,16.52693907]
[1765851391476,0.7,126.83,126.79,16.52693907]
[1765851391684,15.91674721,126.82,126.76,3.58965601]
[1765851391885,2.86965601,126.81,126.77,8.64]
[1765851392087,3.52965601,126.81,126.77,8.64]
[1765851392289,0.66,126.8,126.77,8.64]
[1765851392767,0.66,126.8,126.77,17.22798605]
[1765851393377,8.54646042,126.8,126.77,16.52798605]
[1765851393583,8.54646042,126.8,126.77,8.64]
[1765851393783,0.66,126.79,126.77,8.64]
[1765851393978,0.66,126.79,126.77,70.54]
[1765851394498,8.5460388,126.81,126.77,79.12830123]
[1765851394702,0.66,126.8,126.77,81.99795724]
[1765851395195,8.54650106,126.8,126.77,70.54]
[1765851395698,0.66,126.79,126.77,70.54]
[1765851399001,8.54708482,126.79,126.77,70.54]
[1765851399291,0.66,126.79,126.77,70.54]
[1765851399598,0.66,126.79,126.77,8.64]
[1765851402679,19.71077265,126.84,126.77,19.39786916]
[1765851402882,0.66,126.82,126.78,3.56965601]
[1765851403094,0.66,126.82,126.79,8.66]
[1765851403300,8.54521185,126.82,126.79,8.66]
[1765851403893,0.66,126.82,126.79,19.41659612]
[1765851404094,20.93113725,126.84,126.8,0.7]
[1765851404291,0.66,126.83,126.81,8.66]
[1765851404799,3.52965601,126.83,126.8,8.66]
[1765851405308,0.66,126.82,126.8,8.66]
[1765851405898,7.88581342,126.81,126.79,8.66]
[1765851406290,0.66,126.8,126.79,8.66]
[1765851407105,7.88483396,126.83,126.79,12.22965601]
[1765851407293,8.54483396,126.83,126.79,12.22965601]
[1765851407602,7.88483396,126.83,126.79,20.11647605]
[1765851407802,0.66,126.82,126.79,8.66]
[1765851409101,3.52965601,126.82,126.78,8.66]
[1765851409508,0.66,126.81,126.78,8.66]
[1765851409705,11.41608356,126.81,126.75,2.86965601]
[1765851409887,2.86965601,126.79,126.75,8.66]
[1765851410286,0.66,126.78,126.75,8.66]
[1765851410523,3.52965601,126.78,126.72,3.56965601]
[1765851410686,3.52965601,126.78,126.73,16.55043987]
[1765851410888,0.66,126.77,126.73,16.55043987]
[1765851411218,0.66,126.77,126.73,17.25043987]
[1765851411506,2.86965601,126.79,126.73,19.42009588]
[1765851411802,0.66,126.78,126.74,0.7]
[1765851412009,0.66,126.78,126.74,8.589617]
[1765851412392,11.4174212,126.78,126.73,16.55064832]
[1765851412902,0.66,126.77,126.73,17.25064832]
[1765851413702,0.66,126.77,126.73,20.12030433]
[1765851413911,8.54834701,126.77,126.73,20.12030433]
[1765851414286,0.66,126.76,126.73,20.12030433]
[1765851416306,11.41761548,126.78,126.73,19.42030433]
[1765851416491,0.66,126.77,126.74,0.7]
[1765851416697,0.66,126.77,126.73,20.12030433]
[1765851417090,0.66,126.77,126.73,8.66]
[1765851417091,3.52965601,126.77,126.73,8.66]
[1765851417293,2.86965601,126.76,126.73,8.66]
[1765851417489,15.91674721,126.75,126.73,8.66]
[1765851417729,16.57674721,126.75,126.71,8.66]
[1765851417914,3.52965601,126.74,126.71,8.66]
[1765851418517,8.55089149,126.73,126.71,8.66]
[1765851418811,21.85703612,126.71,126.64,2.86965601]
[1765851418993,2.86965601,126.69,126.64,11.46561232]
[1765851419188,0.66,126.7,126.63,10.76644181]
[1765851419389,2.86965601,126.69,126.63,11.46644181]
[1765851419607,15.91674721,126.67,126.62,8.86]
[1765851419812,2.86965601,126.66,126.62,8.86]
[1765851420027,3.52965601,126.66,126.62,8.86]
[1765851420195,13.7070912,126.66,126.62,12.42965601]
[1765851420390,20.94251956,126.66,126.62,20.32711057]
[1765851420591,0.66,126.65,126.62,20.32711057]
[1765851420912,2.86965601,126.64,126.62,0.2]
[1765851421213,2.86965601,126.63,126.62,0.2]
[1765851421413,8.37481336,126.64,126.62,0.2]
[1765851421596,7.71481336,126.64,126.62,0.2]
[1765851421791,8.37481336,126.63,126.62,0.2]
[1765851422194,0.66,126.63,126.62,0.2]
[1765851422713,8.55702282,126.63,126.62,0.2]
[1765851424516,7.89702282,126.63,126.62,0.2]
[1765851424725,0.67,126.65,126.62,0.2]
[1765851424921,8.56577575,126.65,126.62,0.86]
[1765851425105,8.56577575,126.65,126.62,8.57481336]
[1765851425503,8.56577575,126.65,126.62,0.86]
[1765851426925,7.89530158,126.66,126.63,0.66]
[1765851427104,8.56530158,126.66,126.63,0.66]
[1765851427310,8.56530158,126.66,126.62,8.57481336]
[1765851427518,8.56530158,126.66,126.62,16.47226093]
[1765851427714,7.89475166,126.67,126.63,0.66]
[1765851428021,8.56475166,126.67,126.63,8.37481336]
[1765851428211,7.89410983,126.68,126.64,9.32]
[1765851428418,8.56348417,126.69,126.65,8.37481336]
[1765851428609,8.56348417,126.69,126.65,16.27027592]
[1765851428811,8.56348417,126.69,126.66,0.66]
[1765851429001,0.67,126.69,126.66,8.37481336]
[1765851429203,8.56183487,126.72,126.67,16.37481336]
[1765851429398,7.89183487,126.72,126.68,7.71481336]
[1765851429599,7.89183487,126.72,126.69,7.71481336]
[1765851429806,7.89183487,126.72,126.69,8.37481336]
[1765851430023,8.56183487,126.72,126.69,8.37481336]
[1765851430605,7.89183487,126.72,126.69,8.37481336]
[1765851433509,8.56079144,126.73,126.69,8.37481336]
[1765851434027,0.67,126.72,126.67,16.55410773]
[1765851434231,0.67,126.72,126.68,7.71481336]
[1765851434416,0.67,126.72,126.68,16.26852791]
[1765851434730,8.56079144,126.73,126.69,16.26803632]
[1765851435129,8.56079144,126.73,126.69,8.37481336]
[1765851435310,0.67,126.72,126.69,8.37481336]
[1765851437032,8.56079144,126.73,126.69,8.37481336]
[1765851437227,8.56079144,126.73,126.69,16.2678967]
[1765851437428,7.89079144,126.73,126.7,0.66]
[1765851437812,7.89079144,126.73,126.69,15.6078967]
[1765851438013,7.89079144,126.73,126.69,16.2678967]
[1765851438224,0.67,126.72,126.69,16.2678967]
[1765851438615,7.89079144,126.73,126.7,0.66]
[1765851438812,8.56079144,126.73,126.7,0.66]
[1765851439014,8.56079144,126.73,126.69,15.6078967]
[1765851439316,7.88954635,126.75,126.71,7.71481336]
[1765851439623,0.67,126.75,126.72,12.50983306]
[1765851440434,0.67,126.75,126.71,0.66]
[1765851441138,0.67,126.78,126.71,28.28168288]
[1765851441311,0.67,126.78,126.73,12.50983306]
[1765851441511,0.67,126.78,126.73,13.14925906]
[1765851441732,0.67,126.78,126.73,13.80925906]
[1765851441935,4.48925906,126.77,126.73,8.66]
[1765851442137,4.48925906,126.77,126.71,8.55159055]
[1765851442334,17.53635026,126.75,126.69,5.14925906]
[1765851442718,0.67,126.74,126.69,5.14925906]
[1765851442918,5.15925906,126.74,126.69,13.04243666]
[1765851443127,7.89079144,126.73,126.69,13.04243666]
[1765851443334,8.56079144,126.73,126.69,13.04243666]
[1765851443524,8.56079144,126.73,126.69,8.5531776]
[1765851443525,0.67,126.72,126.69,8.5531776]
[1765851444317,0.67,126.72,126.68,16.55363544]
[1765851444523,0.67,126.72,126.68,17.21363544]
[1765851445052,12.51505222,126.71,126.66,13.0470912]
[1765851445347,7.89265982,126.7,126.66,16.55514435]
[1765851445549,8.56265982,126.7,126.66,17.21514435]
[1765851445731,0.67,126.69,126.66,8.66]
[1765851446241,13.18505222,126.69,126.66,8.66]
[1765851446442,12.51505222,126.67,126.62,0.2]
[1765851446741,12.51505222,126.66,126.62,16.75751589]
[1765851447115,21.08034838,126.66,126.62,17.41751589]
[1765851447446,0.67,126.66,126.62,17.41751589]
[1765851447626,0.67,126.68,126.64,12.51505222]
[1765851448128,0.67,126.68,126.64,13.17505222]
[1765851448326,8.56400718,126.68,126.64,13.17505222]
[1765851448526,21.0790594,126.68,126.62,49.67668436]
[1765851448733,0.67,126.67,126.62,49.67668436]
[1765851449041,0.67,126.7,126.65,12.51505222]
[1765851449247,8.5626809,126.7,126.65,29.73028525]
[1765851449641,0.67,126.69,126.65,17.21523303]
[1765851449841,0.67,126.69,126.65,29.73028525]
[1765851450848,21.60934296,126.71,126.66,13.17505222]
[1765851451245,0.67,126.7,126.66,12.51505222]
[1765851451447,0.67,126.7,126.66,13.17505222]
[1765851451651,12.51505222,126.69,126.63,0.66]
[1765851451826,12.51505222,126.68,126.63,17.21662133]
[1765851452033,12.51505222,126.67,126.63,8.66]
[1765851452543,0.67,126.66,126.63,9.32]
[1765851453326,7.89504469,126.67,126.63,29.0719733]
[1765851453529,0.67,126.67,126.64,0.66]
[1765851453730,7.8928856,126.7,126.65,12.51505222]
[1765851453952,0.67,126.69,126.64,0.66]
[1765851454140,13.18505222,126.69,126.63,16.55692108]
[1765851454342,13.18505222,126.69,126.63,29.7319733]
[1765851454537,0.67,126.68,126.63,29.74338711]
[1765851455052,8.56445254,126.68,126.63,29.74338711]
[1765851455241,8.56445254,126.68,126.64,8.66]
[1765851455443,0.67,126.67,126.64,8.66]
[1765851456357,8.5646151,126.67,126.64,8.66]
[1765851456943,0.67,126.66,126.62,8.09739911]
[1765851457145,25.57355723,126.68,126.64,12.52646603]
[1765851457146,21.61126215,126.68,126.64,12.52646603]
[1765851457654,21.61001536,126.7,126.67,12.52646603]
[1765851457843,21.61001536,126.7,126.67,21.18646603]
[1765851458040,0.67,126.69,126.67,8.66]
[1765851458241,8.56339417,126.69,126.67,8.66]
[1765851458843,8.56339417,126.69,126.65,29.74190075]
[1765851459039,7.89339417,126.69,126.65,29.74190075]
[1765851459260,8.56339417,126.69,126.65,29.74190075]
[1765851459856,0.67,126.68,126.65,8.66]
[1765851460454,7.89452909,126.67,126.65,8.66]
[1765851460961,0.67,126.66,126.62,83.18390084]
[1765851461261,0.67,126.66,126.63,8.66]
[1765851461954,0.67,126.66,126.62,8.86]
[1765851461955,13.19646603,126.66,126.62,8.86]
[1765851462332,8.56577575,126.65,126.62,8.86]
[1765851462845,8.56577575,126.65,126.62,16.75752347]
[1765851463257,0.67,126.65,126.62,16.75752347]
[1765851463561,7.89542538,126.66,126.62,29.9439895]
[1765851463739,8.56542538,126.66,126.62,29.2839895]
[1765851464065,8.56542538,126.66,126.63,0.66]
[1765851464741,8.56542538,126.66,126.63,8.55699762]
[1765851465466,0.67,126.65,126.62,8.86]
[1765851466663,0.67,126.65,126.62,0.2]
[1765851466664,20.42286527,126.64,126.62,0.2]
[1765851467047,0.67,126.63,126.62,0.2]
[1765851467362,7.89639924,126.64,126.62,0.2]
[1765851467663,0.67,126.63,126.62,0.2]
[1765851468640,8.56702282,126.63,126.62,0.2]
[1765851473677,8.80994492,126.62,126.61,0.2]
[1765851473857,12.52646603,126.61,126.6,0.2]
[1765851474040,13.19646603,126.61,126.6,0.2]
[1765851474443,42.95177242,126.61,126.6,0.2]
[1765851475151,34.1418275,126.61,126.6,0.2]
[1765851475356,42.95177242,126.61,126.6,0.2]
[1765851476160,30.42530639,126.61,126.6,0.2]
[1765851476369,21.61536147,126.61,126.6,0.2]
[1765851476571,34.1418275,126.61,126.6,0.2]
[1765851476937,21.61536147,126.61,126.6,0.2]
[1765851477142,34.1418275,126.61,126.6,0.2]
[1765851478651,33.4718275,126.61,126.6,0.2]
[1765851478854,21.61536147,126.61,126.6,0.2]
[1765851479464,34.1418275,126.61,126.6,0.2]
[1765851480274,42.95177242,126.61,126.6,0.2]
[1765851480603,8.80994492,126.57,126.53,0.2]
[1765851480765,40.18133328,126.56,126.53,0.2]
[1765851481095,40.85133328,126.56,126.53,0.2]
[1765851481448,40.18133328,126.56,126.53,0.86]
[1765851481676,7.90139064,126.56,126.53,0.86]
[1765851482742,20.42785667,126.56,126.53,0.86]
[1765851482947,21.13785667,126.56,126.53,0.2]
[1765851483270,40.89133328,126.56,126.53,0.2]
[1765851483474,7.90139064,126.56,126.54,0.66]
[1765851484284,7.90139064,126.56,126.53,0.2]
[1765851484454,7.90139064,126.56,126.53,0.86]
[1765851484656,20.42785667,126.56,126.53,0.86]
[1765851484855,40.89133328,126.56,126.53,0.2]
[1765851486056,7.90263948,126.54,126.53,0.2]
[1765851486463,20.42910551,126.54,126.53,0.2]
[1765851486675,13.0470912,126.51,126.5,0.2]
[1765851486876,25.57355723,126.51,126.5,0.2]
[1765851487748,26.28355723,126.51,126.5,0.2]
[1765851487949,34.1880707,126.51,126.5,0.2]
[1765851488973,20.95160467,126.51,126.5,0.2]
[1765851489487,12.52646603,126.54,126.5,0.86]
[1765851489786,20.94973068,126.54,126.51,0.66]
[1765851490283,53.23279541,126.54,126.51,0.66]
[1765851490491,53.94279541,126.54,126.5,0.2]
[1765851490687,13.23646603,126.53,126.5,0.2]
[1765851491069,12.52646603,126.53,126.5,0.86]
[1765851491677,20.94973068,126.54,126.51,8.56448688]
[1765851491872,0.71,126.57,126.52,12.52646603]
[1765851491873,27.6526823,126.57,126.52,12.52646603]
[1765851492069,53.22623953,126.57,126.52,13.18646603]
[1765851492270,53.93623953,126.57,126.53,0.66]
[1765851492883,53.93623953,126.57,126.53,13.18646603]
[1765851492884,7.90076637,126.57,126.53,13.18646603]
[1765851493193,7.90076637,126.57,126.53,0.66]
[1765851493398,7.90076637,126.57,126.54,0.66]
[1765851494599,7.90032615,126.58,126.55,12.52646603]
[1765851495096,20.94667086,126.59,126.56,0.66]
[1765851495399,41.6409485,126.62,126.56,13.18646603]
[1765851495602,13.0470912,126.61,126.56,13.18646603]
[1765851495897,13.0470912,126.61,126.57,0.66]
[1765851496112,7.89827027,126.61,126.57,13.18646603]
[1765851496399,7.8976465,126.62,126.57,21.08663595]
[1765851496602,7.897266,126.63,126.58,13.18646603]
[1765851496798,28.54854833,126.66,126.6,12.52646603]
[1765851496799,7.89577575,126.65,126.6,12.52646603]
[1765851497000,7.89535913,126.66,126.62,12.52646603]
[1765851497205,20.94245033,126.66,126.62,12.52646603]
[1765851497376,20.94245033,126.66,126.63,0.66]
[1765851497580,7.89535913,126.66,126.63,0.66]
[1765851497800,8.60535913,126.66,126.63,0.66]
[1765851498189,7.89535913,126.66,126.63,0.66]
[1765851499073,7.89468983,126.67,126.63,8.5569255]
[1765851499275,7.89468983,126.67,126.64,0.66]
[1765851499700,8.60468983,126.67,126.62,8.55739511]
[1765851499900,7.89468983,126.67,126.63,0.66]
[1765851501814,35.34046338,126.67,126.61,7.89805466]
[1765851502113,35.34046338,126.67,126.62,0.66]
[1765851502315,8.41945083,126.66,126.6,24.26819755]
[1765851502495,8.41945083,126.66,126.61,0.66]
[1765851502696,7.70945083,126.65,126.61,0.66]
[1765851502893,7.70945083,126.64,126.6,8.66]
[1765851503098,7.70945083,126.65,126.61,0.66]
[1765851503710,8.41945083,126.65,126.61,0.66]
[1765851503908,7.70945083,126.63,126.59,0.66]
[1765851504097,7.70945083,126.62,126.59,0.66]
[1765851504296,7.70945083,126.63,126.59,0.66]
[1765851504614,8.41945083,126.63,126.59,0.66]
[1765851505003,7.8976465,126.62,126.59,0.66]
[1765851506513,7.8976465,126.62,126.59,8.36945083]
[1765851506717,7.8976465,126.62,126.59,16.26893141]
[1765851506921,7.8976465,126.62,126.6,0.66]
[1765851508218,7.89702282,126.63,126.6,0.66]
[1765851509620,8.60702282,126.63,126.58,16.26936411]
[1765851509802,7.89702282,126.63,126.59,0.66]
[1765851510498,7.89702282,126.63,126.54,21.85703612]
[1765851510499,7.70945083,126.61,126.57,0.66]
[1765851511014,8.41945083,126.61,126.57,0.66]
[1765851511511,7.70945083,126.59,126.55,9.32]
[1765851511711,7.70945083,126.58,126.53,8.56283834]
[1765851511918,7.70945083,126.57,126.53,0.66]
[1765851512119,8.41945083,126.57,126.53,0.66]
[1765851512321,7.70945083,126.54,126.51,9.35]
[1765851512628,7.90263948,126.54,126.51,9.35]
[1765851512927,7.70945083,126.53,126.5,0.2]
[1765851513224,35.36868901,126.54,126.5,0.89]
[1765851513430,8.41945083,126.53,126.5,0.2]
[1765851513928,35.36868901,126.54,126.5,0.89]
[1765851514125,27.65923818,126.54,126.5,0.89]
[1765851514331,27.65923818,126.54,126.51,0.69]
[1765851515506,7.90263948,126.54,126.51,0.69]
[1765851516211,7.90224073,126.55,126.51,16.30395424]
[1765851516423,8.61224073,126.55,126.51,0.69]
[1765851516606,35.36672909,126.55,126.51,0.69]
[1765851516810,7.90224073,126.55,126.52,0.69]
[1765851517725,15.61169156,126.55,126.52,0.69]
[1765851518921,7.90224073,126.55,126.52,0.69]
[1765851519455,19.75040392,126.58,126.52,0.69]
[1765851519620,28.16985475,126.58,126.52,17.05945083]
[1765851520013,28.16985475,126.58,126.53,0.69]
[1765851520423,28.18242609,126.58,126.53,0.69]
[1765851520628,0.71,126.57,126.53,0.69]
[1765851520815,8.61086096,126.57,126.53,0.69]
[1765851521019,7.90086096,126.57,126.53,0.69]
[1765851521830,8.43202217,126.56,126.52,8.66]
[1765851522038,8.43202217,126.56,126.52,9.35]
[1765851522716,7.90201501,126.55,126.52,9.35]
[1765851523467,7.90201501,126.55,126.52,8.66]
[1765851523623,7.72202217,126.53,126.5,0.89]
[1765851524148,8.43202217,126.54,126.5,0.89]
[1765851524715,15.62528621,126.53,126.5,0.89]
[1765851524914,16.33528621,126.53,126.5,0.2]
[1765851525623,7.72202217,126.52,126.5,0.2]
[1765851525818,36.09344633,126.53,126.5,0.2]
[1765851526321,7.72202217,126.51,126.5,0.2]
[1765851526522,13.0470912,126.51,126.5,0.2]
[1765851527238,15.62591088,126.52,126.5,0.2]
[1765851527547,7.90388871,126.52,126.5,0.2]
[1765851528353,15.62591088,126.52,126.5,0.2]
[1765851529219,7.90388871,126.52,126.5,0.89]
[1765851529434,7.72202217,126.54,126.5,8.79512562]
[1765851529435,7.90263948,126.54,126.5,8.79512562]
[1765851529627,7.90263948,126.54,126.51,0.69]
[1765851530218,7.90201501,126.55,126.51,0.69]
[1765851530425,7.90201501,126.55,126.51,8.59443201]
[1765851530841,7.90201501,126.55,126.52,0.69]
[1765851531041,8.61201501,126.55,126.52,0.69]
[1765851535440,7.90201501,126.55,126.52,0.69]
[1765851536231,7.90148754,126.56,126.52,11.47763416]
[1765851536550,7.90148754,126.56,126.52,20.13763416]
[1765851536726,7.90148754,126.56,126.53,0.69]
[1765851540354,8.43217402,126.59,126.53,16.31519412]
[1765851540660,7.89951812,126.59,126.54,8.41217402]
[1765851540961,7.89951812,126.59,126.55,8.66]
[1765851541260,7.89951812,126.59,126.55,9.35]
[1765851541467,7.89907421,126.6,126.56,0.69]
[1765851541640,7.89855635,126.61,126.57,7.72217402]
[1765851541840,7.89855635,126.61,126.56,8.41217402]
[1765851542260,7.89855635,126.61,126.57,8.62076637]
[1765851542445,7.89855635,126.61,126.57,0.72]
[1765851542645,7.72217402,126.6,126.57,0.72]
[1765851542848,36.05640606,126.61,126.57,0.72]
[1765851543568,28.33423204,126.61,126.57,0.72]
[1765851543744,7.89786522,126.62,126.57,8.62066714]
[1765851543949,7.89786522,126.62,126.58,8.66]
[1765851544252,8.41217402,126.61,126.58,8.66]
[1765851544640,27.64198147,126.62,126.59,0.72]
[1765851544846,36.05415549,126.62,126.59,0.72]
[1765851545357,28.33198147,126.62,126.59,0.72]
[1765851545862,28.33198147,126.62,126.58,8.66]
[1765851545863,8.41217402,126.61,126.58,8.66]
[1765851546059,7.72217402,126.61,126.58,9.38]
[1765851546266,35.36415549,126.62,126.58,9.38]
[1765851546446,0.69,126.61,126.58,9.38]
[1765851546971,7.72217402,126.6,126.56,0.72]
[1765851547270,7.72217402,126.6,126.57,0.72]
[1765851547476,8.41217402,126.6,126.57,0.72]
[1765851548385,7.89951812,126.59,126.57,0.72]
[1765851548588,7.89904092,126.6,126.57,0.72]
[1765851549256,7.89904092,126.6,126.57,8.62067381]
[1765851549655,7.89904092,126.6,126.58,0.72]
[1765851550853,7.89827027,126.61,126.58,0.72]
[1765851551057,8.58827027,126.61,126.58,0.72]
[1765851551554,7.89827027,126.61,126.58,8.62007208]
[1765851551758,7.89771353,126.62,126.58,8.62007208]
[1765851551977,7.89771353,126.62,126.59,0.72]
[1765851552684,7.89661377,126.64,126.59,8.44217402]
[1765851552894,7.89661377,126.64,126.6,8.61832271]
[1765851553383,7.89661377,126.64,126.61,0.72]
[1765851555080,16.30820918,126.65,126.61,8.61811609]
[1765851555287,7.89603516,126.65,126.61,8.61811609]
[1765851555458,15.6175676,126.66,126.62,0.72]
[1765851555658,16.3075676,126.66,126.62,0.72]
[1765851556474,8.41217402,126.65,126.61,8.66]
[1765851556684,0.69,126.64,126.61,9.38]
[1765851556886,8.41217402,126.65,126.61,9.38]
[1765851557462,8.41217402,126.64,126.61,8.66]
[1765851557674,7.72217402,126.63,126.59,0.72]
[1765851557889,8.41217402,126.63,126.59,0.72]
[1765851558186,7.8976465,126.62,126.59,0.72]
[1765851560482,8.5876465,126.62,126.59,0.72]
[1765851560680,7.8976465,126.62,126.59,0.72]
[1765851562804,7.89727958,126.63,126.59,8.61933128]
[1765851563307,32.83020137,126.63,126.59,0.72]
[1765851564120,0.69,126.62,126.59,0.72]
[1765851564486,28.32983663,126.63,126.59,0.72]
[1765851565230,7.89727958,126.63,126.59,13.11951531]
[1765851565509,0.69,126.62,126.58,9.38]